bitfinex-derivatives/quotes_SOLF0:USTF0_20250904
["timestamp","ask_amount","ask_price","bid_price","bid_amount"]
[1757001185033,9.78617604,204.13,204.09,7.99]
[1757001185234,7.85,204.12,204.1,5.82421269]
[1757001185437,7.85,204.12,204.11,5.82421269]
[1757001186633,9.78617604,204.14,204.11,5.82421269]
[1757001186836,9.78617604,204.14,204.12,5.82421269]
[1757001187029,0.85253372,204.27,204.13,7.76038873]
[1757001187232,1.93617604,204.22,204.16,1.93617604]
[1757001187431,7.85,204.22,204.18,7.99]
[1757001188640,7.85,204.24,204.21,5.82250943]
[1757001188839,1.93617604,204.22,204.16,9.92617604]
[1757001189041,9.78617604,204.22,204.18,7.99]
[1757001189240,9.78617604,204.22,204.19,5.82224857]
[1757001189442,1.93617604,204.22,204.2,5.82224857]
[1757001189739,7.85,204.21,204.13,9.92617604]
[1757001189944,52.0,204.26,204.15,7.99]
[1757001189945,9.78617604,204.19,204.15,7.99]
[1757001190144,1.93617604,204.17,204.16,13.8125207]
[1757001190839,1.93617604,204.19,204.17,7.99]
[1757001191045,1.93617604,204.19,204.18,13.8125207]
[1757001191543,1.93617604,204.19,204.18,5.8225207]
[1757001191742,9.78617604,204.19,204.18,5.8225207]
[1757001192441,9.78617604,204.19,204.14,7.99]
[1757001192747,1.93617604,204.15,204.14,7.99]
[1757001193342,1.93617604,204.15,204.09,7.99]
[1757001193647,1.93617604,204.13,204.09,7.99]
[1757001195135,7.85,204.18,204.09,7.99]
[1757001195336,1.93617604,204.13,204.09,7.99]
[1757001196446,1.93617604,204.15,204.09,7.99]
[1757001196943,7.85,204.18,204.09,7.99]
[1757001197138,1.93617604,204.15,204.09,7.99]
[1757001199645,7.85,204.18,204.09,7.99]
[1757001199646,1.93617604,204.14,204.09,7.9]
[1757001199837,1.93617604,204.12,204.06,1.93617604]
[1757001200238,1.93617604,204.12,204.05,7.9]
[1757001200546,1.93617604,204.12,204.05,9.83617604]
[1757001202443,7.87,204.26,204.07,1.93617604]
[1757001202639,7.87,204.26,204.05,7.9]
[1757001202640,1.93617604,204.18,204.12,7.9]
[1757001203248,1.93617604,204.18,204.13,1.93617604]
[1757001203441,1.93617604,204.18,204.11,7.9]
[1757001203640,1.93617604,204.18,204.12,1.93617604]
[1757001203846,1.93617604,204.18,204.13,7.9]
[1757001204448,1.93617604,204.18,204.15,7.9]
[1757001204643,7.87,204.22,204.16,13.65422645]
[1757001204943,1.93617604,204.18,204.17,5.75422645]
[1757001205346,1.93617604,204.18,204.17,3.86447706]
[1757001207853,1.93617604,204.19,204.17,13.65473423]
[1757001208050,7.87,204.23,204.19,7.9]
[1757001208051,1.93617604,204.21,204.19,7.9]
[1757001208255,1.93617604,204.21,204.2,3.86447706]
[1757001208550,1.93617604,204.21,204.14,1.93617604]
[1757001208551,9.80617604,204.21,204.14,7.9]
[1757001208750,1.93617604,204.17,204.16,7.9]
[1757001208956,1.93617604,204.17,204.16,13.65475638]
[1757001209346,1.93617604,204.17,204.16,5.75475638]
[1757001209848,7.87,204.21,204.16,5.75475638]
[1757001210056,7.87,204.27,204.17,3.86484469]
[1757001210354,1.93617604,204.17,204.1,7.9]
[1757001210554,1.93617604,204.17,204.12,7.9]
[1757001210746,1.93617604,204.17,204.14,7.9]
[1757001210951,1.93617604,204.17,204.15,3.8649643]
[1757001211151,1.93617604,204.17,204.16,3.8649643]
[1757001211349,1.93617604,204.17,204.16,11.7649643]
[1757001211554,1.93617604,204.19,204.17,7.9]
[1757001211855,1.93617604,204.21,204.19,7.9]
[1757001212651,7.87,204.23,204.2,3.86434979]
[1757001212861,1.93617604,204.22,204.16,7.9]
[1757001213059,1.93617604,204.22,204.18,7.9]
[1757001213359,1.93617604,204.22,204.19,11.76434979]
[1757001213656,7.87,204.23,204.2,3.86434979]
[1757001213861,1.93617604,204.21,204.19,7.9]
[1757001214053,1.93617604,204.21,204.2,3.86379443]
[1757001214254,1.93617604,204.21,204.19,7.9]
[1757001214758,1.93617604,204.21,204.12,7.9]
[1757001214954,1.93617604,204.18,204.13,5.75293046]
[1757001215155,1.93617604,204.18,204.14,5.75293046]
[1757001215461,1.93617604,204.18,204.16,7.9]
[1757001216360,1.93617604,204.18,204.1,1.93617604]
[1757001216655,1.93617604,204.18,204.13,7.9]
[1757001216860,1.93617604,204.18,204.14,5.75292284]
[1757001217062,1.93617604,204.18,204.16,7.9]
[1757001217257,1.93617604,204.2,204.18,7.9]
[1757001217457,1.93617604,204.2,204.14,1.93617604]
[1757001217756,1.93617604,204.2,204.16,7.9]
[1757001217967,7.87,204.28,204.18,7.9]
[1757001218263,1.93617604,204.21,204.15,7.9]
[1757001218563,1.93617604,204.21,204.16,5.75193059]
[1757001218763,1.93617604,204.21,204.18,7.9]
[1757001218961,1.93617604,204.19,204.13,1.93617604]
[1757001219161,1.93617604,204.2,204.14,5.75200008]
[1757001219358,1.93617604,204.2,204.15,5.75200008]
[1757001219558,1.93617604,204.2,204.16,5.75200008]
[1757001219863,7.87,204.28,204.18,7.9]
[1757001220057,1.93617604,204.22,204.19,3.86291801]
[1757001220258,1.93617604,204.22,204.2,11.76291801]
[1757001220563,1.93617604,204.22,204.2,7.9]
[1757001221259,1.93617604,204.22,204.16,7.9]
[1757001221553,1.93617604,204.22,204.18,7.9]
[1757001221753,1.93617604,204.22,204.19,3.86130547]
[1757001221961,1.93617604,204.22,204.21,7.9]
[1757001222163,1.93617604,204.23,204.21,11.76130547]
[1757001222462,1.93617604,204.25,204.22,11.76130547]
[1757001222667,1.93617604,204.25,204.24,7.9]
[1757001222964,1.93617604,204.26,204.16,7.9]
[1757001223159,1.93617604,204.26,204.2,7.9]
[1757001223362,1.93617604,204.26,204.21,5.74703954]
[1757001223554,1.93617604,204.26,204.23,7.9]
[1757001223963,7.87,204.29,204.23,7.9]
[1757001224156,1.93617604,204.28,204.21,1.93617604]
[1757001224363,1.93617604,204.29,204.23,7.9]
[1757001224665,7.87,204.32,204.25,7.9]
[1757001224860,7.87,204.32,204.23,1.93617604]
[1757001224861,7.87,204.32,204.26,11.75666244]
[1757001225057,7.87,204.32,204.27,11.75666244]
[1757001225063,1.93617604,204.3,204.27,11.75666244]
[1757001225366,1.93617604,204.3,204.27,7.9]
[1757001226863,11.09225186,204.37,204.24,7.9]
[1757001227163,1.93617604,204.31,204.26,7.9]
[1757001227665,1.93617604,204.31,204.27,3.85049039]
[1757001227867,1.93617604,204.31,204.25,1.93617604]
[1757001228070,1.93617604,204.31,204.27,8.01]
[1757001228557,1.93617604,204.31,204.24,8.01]
[1757001228760,1.93617604,204.31,204.26,8.01]
[1757001228958,1.93617604,204.32,204.27,3.84927907]
[1757001229271,1.93617604,204.32,204.26,8.01]
[1757001229868,7.39,204.36,204.26,8.01]
[1757001230064,1.93617604,204.32,204.27,3.84781844]
[1757001230365,1.93617604,204.32,204.26,8.01]
[1757001230565,1.93617604,204.32,204.28,8.01]
[1757001230765,1.93617604,204.32,204.26,8.01]
[1757001230963,7.39,204.36,204.28,8.01]
[1757001231172,1.93617604,204.33,204.3,8.01]
[1757001231365,1.93617604,204.33,204.27,1.93617604]
[1757001231669,1.93617604,204.33,204.29,8.01]
[1757001231869,1.93617604,204.33,204.27,1.93617604]
[1757001232071,7.39,204.36,204.29,8.01]
[1757001232269,1.93617604,204.3,204.29,8.01]
[1757001233774,1.93617604,204.32,204.29,8.01]
[1757001234466,1.93617604,204.32,204.26,1.93617604]
[1757001234668,1.93617604,204.32,204.27,3.86217196]
[1757001234868,1.93617604,204.32,204.27,8.01]
[1757001235170,1.93617604,204.32,204.26,1.93617604]
[1757001235372,1.93617604,204.33,204.28,8.01]
[1757001235665,1.93617604,204.33,204.27,8.01]
[1757001235871,1.93617604,204.33,204.28,3.86082727]
[1757001236070,9.32617604,204.33,204.29,8.01]
[1757001236573,1.93617604,204.31,204.23,1.93617604]
[1757001236775,7.39,204.32,204.25,8.01]
[1757001236776,1.93617604,204.29,204.25,8.01]
[1757001237074,1.93617604,204.29,204.24,8.01]
[1757001237371,1.93617604,204.29,204.26,8.01]
[1757001237567,1.93617604,204.29,204.23,1.93617604]
[1757001237770,1.93617604,204.29,204.25,8.01]
[1757001237970,1.93617604,204.29,204.23,1.93617604]
[1757001238167,1.93617604,204.29,204.25,8.01]
[1757001238366,1.93617604,204.29,204.23,1.93617604]
[1757001238570,1.93617604,204.29,204.25,8.01]
[1757001238765,1.93617604,204.29,204.23,1.93617604]
[1757001238968,1.93617604,204.29,204.25,8.01]
[1757001239269,1.93617604,204.29,204.23,8.01]
[1757001239573,1.93617604,204.29,204.25,8.01]
[1757001239773,9.32617604,204.33,204.27,1.93617604]
[1757001240074,1.93617604,204.31,204.25,9.94617604]
[1757001240273,1.93617604,204.31,204.26,3.85884176]
[1757001240473,1.93617604,204.31,204.26,8.01]
[1757001240874,1.93617604,204.31,204.25,1.93617604]
[1757001241075,1.93617604,204.31,204.26,3.85880596]
[1757001241272,1.93617604,204.31,204.28,8.01]
[1757001241979,7.39,204.33,204.28,8.01]
[1757001242177,1.93617604,204.31,204.28,8.01]
[1757001242380,9.32617604,204.31,204.28,8.01]
[1757001242878,1.93617604,204.34,204.29,3.8579654]
[1757001243078,1.93617604,204.32,204.27,8.01]
[1757001243578,7.39,204.35,204.27,8.01]
[1757001244278,7.39,204.37,204.27,8.01]
[1757001244479,10.40984092,204.37,204.28,3.85804326]
[1757001244781,10.40984092,204.37,204.27,8.01]
[1757001244980,10.40984092,204.37,204.28,3.85804326]
[1757001245180,10.40984092,204.37,204.27,8.01]
[1757001245479,10.40984092,204.37,204.28,3.85853291]
[1757001245675,10.40984092,204.37,204.27,8.01]
[1757001245875,10.40984092,204.37,204.29,8.01]
[1757001246881,7.39,204.37,204.29,8.01]
[1757001247384,7.39,204.37,204.3,3.86049257]
[1757001247582,7.39,204.37,204.29,8.01]
[1757001247778,7.39,204.37,204.3,3.86003868]
[1757001247986,7.39,204.37,204.29,8.01]
[1757001248182,7.39,204.37,204.3,3.86003868]
[1757001248383,7.39,204.37,204.29,8.01]
[1757001248582,7.39,204.37,204.3,3.86010781]
[1757001248783,7.39,204.37,204.29,8.01]
[1757001248984,7.39,204.37,204.3,3.86010781]
[1757001249184,7.39,204.37,204.29,8.01]
[1757001249380,7.39,204.37,204.3,3.8599857]
[1757001249684,7.39,204.37,204.29,8.01]
[1757001249885,7.39,204.37,204.3,3.8599857]
[1757001250081,7.39,204.37,204.29,8.01]
[1757001250590,7.39,204.35,204.29,8.01]
[1757001251090,0.85192847,204.44,204.24,14.69]
[1757001251293,10.40984092,204.43,204.31,8.01]
[1757001251490,10.40984092,204.43,204.33,8.01]
[1757001251790,10.40984092,204.43,204.34,3.86092342]
[1757001251992,10.40984092,204.43,204.33,8.01]
[1757001252190,10.40984092,204.43,204.34,3.85970025]
[1757001252390,10.40984092,204.43,204.33,8.01]
[1757001252592,10.40984092,204.43,204.34,3.85932296]
[1757001252787,10.40984092,204.43,204.33,8.01]
[1757001252988,10.40984092,204.43,204.34,3.85932296]
[1757001253183,7.39,204.43,204.33,11.02984092]
[1757001253388,7.39,204.43,204.34,3.85874714]
[1757001253584,7.39,204.43,204.33,11.02984092]
[1757001253891,7.39,204.43,204.34,3.85874705]
[1757001254089,3.01984092,204.45,204.33,8.01]
[1757001254287,18.58,204.46,204.07,136.77454204]
[1757001254288,3.01984092,204.39,204.3,8.01]
[1757001254500,7.39,204.38,204.3,8.01]
[1757001255994,0.85171996,204.48,204.32,11.02984092]
[1757001255995,7.39,204.42,204.32,11.02984092]
[1757001256385,7.39,204.42,204.34,8.01]
[1757001258289,7.64,204.4,204.31,7.97]
[1757001258495,7.64,204.4,204.32,3.86189053]
[1757001258797,7.64,204.4,204.31,7.97]
[1757001258998,7.64,204.4,204.32,3.86190422]
[1757001259197,7.64,204.4,204.31,7.97]
[1757001259398,7.64,204.4,204.32,3.86263777]
[1757001259599,7.64,204.4,204.31,7.97]
[1757001259899,7.64,204.4,204.33,7.97]
[1757001260093,7.64,204.4,204.34,3.86352821]
[1757001260396,7.64,204.4,204.33,7.97]
[1757001261096,7.64,204.4,204.34,3.86336017]
[1757001261298,7.64,204.4,204.33,7.97]
[1757001261601,7.64,204.4,204.34,3.86508684]
[1757001261798,7.64,204.4,204.33,7.97]
[1757001262296,7.64,204.4,204.34,3.86623775]
[1757001262496,7.64,204.4,204.33,7.97]
[1757001262700,7.64,204.4,204.34,3.86617855]
[1757001262895,7.64,204.38,204.29,7.97]
[1757001263094,7.64,204.38,204.3,3.86622296]
[1757001263297,7.64,204.38,204.31,3.86622296]
[1757001263494,7.64,204.38,204.32,3.86622296]
[1757001263694,7.64,204.38,204.33,3.86622296]
[1757001263901,7.64,204.38,204.29,7.97]
[1757001264201,7.64,204.38,204.31,7.97]
[1757001264391,7.64,204.38,204.32,3.86802885]
[1757001264595,7.64,204.38,204.34,7.97]
[1757001264795,3.01984092,204.44,204.32,7.97]
[1757001264995,3.01984092,204.44,204.31,3.01984092]
[1757001264996,7.64,204.43,204.34,7.97]
[1757001265193,7.64,204.43,204.35,3.87019663]
[1757001265501,7.64,204.43,204.36,3.87019663]
[1757001265701,7.64,204.43,204.34,7.97]
[1757001265895,7.64,204.43,204.36,7.97]
[1757001266094,7.64,204.43,204.35,6.89163085]
[1757001266095,7.64,204.43,204.37,3.87166866]
[1757001266292,7.64,204.47,204.38,14.86150958]
[1757001266600,7.64,204.47,204.39,3.87166866]
[1757001266797,7.64,204.47,204.4,11.84166866]
[1757001267100,7.64,204.47,204.41,3.87166866]
[1757001267300,7.64,204.49,204.42,3.87166866]
[1757001267494,7.64,204.49,204.4,7.97]
[1757001267692,3.01984092,204.47,204.34,12.06168057]
[1757001267999,7.64,204.46,204.35,3.8721661]
[1757001268190,7.64,204.46,204.34,3.01984092]
[1757001268191,7.64,204.46,204.37,10.98984092]
[1757001268390,7.64,204.46,204.39,7.97]
[1757001268590,7.64,204.46,204.4,3.8721661]
[1757001268794,7.64,204.46,204.39,7.97]
[1757001268991,7.64,204.46,204.4,3.87209211]
[1757001269196,7.64,204.46,204.39,7.97]
[1757001269399,7.64,204.48,204.4,3.87250201]
[1757001269600,7.64,204.45,204.39,7.97]
[1757001269800,3.01984092,204.46,204.4,3.87262317]
[1757001270000,7.64,204.45,204.39,7.97]
[1757001270404,3.01984092,204.43,204.34,7.97]
[1757001270605,7.64,204.42,204.35,3.87246289]
[1757001270904,7.64,204.42,204.36,3.87246289]
[1757001271103,7.64,204.42,204.34,7.97]
[1757001271304,7.64,204.42,204.35,3.87315669]
[1757001271499,7.64,204.42,204.36,3.87315669]
[1757001271702,10.65984092,204.43,204.37,3.87315669]
[1757001271903,10.65984092,204.43,204.35,7.97]
[1757001272099,10.65984092,204.43,204.36,3.8731801]
[1757001272302,10.65984092,204.43,204.37,3.8731801]
[1757001272599,10.65984092,204.43,204.35,7.97]
[1757001272793,10.65984092,204.43,204.36,3.87348458]
[1757001272993,10.65984092,204.43,204.37,3.87348458]
[1757001273201,10.65984092,204.43,204.35,7.97]
[1757001273403,10.65984092,204.43,204.36,3.87403842]
[1757001273607,10.65984092,204.43,204.35,7.97]
[1757001273903,3.01984092,204.4,204.36,3.87416491]
[1757001274105,7.64,204.39,204.31,7.97]
[1757001274302,7.64,204.39,204.32,5.76189144]
[1757001274603,7.64,204.39,204.33,3.87442717]
[1757001274793,10.65984092,204.4,204.34,11.84442717]
[1757001274994,3.01984092,204.4,204.35,3.87442717]
[1757001275197,10.65984092,204.4,204.34,7.97]
[1757001275398,7.64,204.39,204.31,7.97]
[1757001275595,7.64,204.39,204.32,3.87536571]
[1757001275801,7.64,204.39,204.31,7.97]
[1757001276000,7.64,204.39,204.32,3.87538813]
[1757001276203,7.64,204.39,204.31,7.97]
[1757001276400,7.64,204.39,204.32,3.87551177]
[1757001276606,7.64,204.39,204.31,7.97]
[1757001276809,7.64,204.39,204.32,3.87551177]
[1757001276998,7.64,204.39,204.31,7.97]
[1757001277202,7.64,204.39,204.32,3.87551158]
[1757001277399,7.64,204.39,204.31,7.97]
[1757001277704,7.64,204.36,204.27,7.97]
[1757001278007,7.64,204.36,204.28,3.87580927]
[1757001278306,7.64,204.36,204.29,3.87580927]
[1757001278606,7.64,204.36,204.3,3.87580927]
[1757001278800,7.64,204.36,204.31,3.87580927]
[1757001278998,10.65984092,204.37,204.27,7.97]
[1757001279197,10.65984092,204.37,204.28,3.876039]
[1757001279413,10.65984092,204.37,204.3,7.97]
[1757001279709,10.65984092,204.37,204.31,3.876039]
[1757001279906,10.65984092,204.37,204.33,7.97]
[1757001280108,7.64,204.48,204.34,11.846039]
[1757001280298,7.64,204.4,204.34,7.97]
[1757001280909,7.64,204.4,204.36,7.97]
[1757001283708,3.01984092,204.43,204.37,11.84754149]
[1757001283907,3.01984092,204.43,204.37,7.97]
[1757001284104,3.01984092,204.43,204.38,3.87810142]
[1757001284406,10.65984092,204.43,204.39,7.97]
[1757001285714,10.65984092,204.46,204.33,7.97]
[1757001286013,10.65984092,204.46,204.35,7.97]
[1757001286204,10.65984092,204.46,204.36,5.76705691]
[1757001286408,10.65984092,204.46,204.37,3.87803745]
[1757001286605,7.64,204.45,204.38,11.84803745]
[1757001286811,7.64,204.45,204.39,3.87803745]
[1757001287011,7.64,204.45,204.38,7.97]
[1757001287205,7.64,204.45,204.39,3.87822518]
[1757001287511,7.64,204.45,204.38,7.97]
[1757001287810,7.64,204.45,204.39,3.87852023]
[1757001288009,7.64,204.45,204.4,3.8784095]
[1757001288213,7.64,204.45,204.38,7.97]
[1757001288415,7.64,204.45,204.39,3.87851498]
[1757001288614,7.81,204.45,204.4,3.87851498]
[1757001288815,7.81,204.42,204.34,7.55]
[1757001289017,7.81,204.42,204.35,5.76878646]
[1757001289219,7.81,204.42,204.36,5.76878646]
[1757001289412,7.81,204.42,204.37,3.87855941]
[1757001289617,7.81,204.42,204.38,3.87855941]
[1757001289816,7.81,204.42,204.39,3.87855941]
[1757001290016,10.82984092,204.43,204.35,7.55]
[1757001290317,10.82984092,204.43,204.36,3.87930267]
[1757001290518,10.82984092,204.43,204.37,3.87930267]
[1757001290715,3.01984092,204.43,204.38,3.87930267]
[1757001291018,7.81,204.42,204.35,7.55]
[1757001291218,7.81,204.42,204.36,3.87973537]
[1757001291517,7.81,204.49,204.37,3.87973537]
[1757001291717,3.01984092,204.42,204.38,3.87973537]
[1757001292018,7.81,204.41,204.35,7.55]
[1757001292214,10.82984092,204.42,204.36,3.87580182]
[1757001292415,3.01984092,204.42,204.37,3.87580182]
[1757001292620,7.81,204.49,204.38,3.87580182]
[1757001292820,3.01984092,204.43,204.39,3.87580182]
[1757001293119,7.81,204.42,204.34,7.55]
[1757001293318,7.81,204.42,204.35,5.76731609]
[1757001293519,7.81,204.42,204.36,3.87620594]
[1757001293814,10.82984092,204.43,204.37,3.87620594]
[1757001294117,7.81,204.42,204.38,3.87620594]
[1757001294311,7.81,204.42,204.39,11.42620594]
[1757001294516,7.81,204.42,204.39,7.55]
[1757001296117,7.81,204.42,204.33,7.55]
[1757001296314,7.81,204.42,204.35,7.55]
[1757001296619,7.81,204.42,204.36,3.87691747]
[1757001296817,7.81,204.43,204.37,3.87691747]
[1757001297017,3.01984092,204.44,204.38,3.87691747]
[1757001297319,7.81,204.43,204.35,7.55]
[1757001297619,7.81,204.43,204.36,3.87715931]
[1757001297917,7.81,204.43,204.37,3.87715931]
[1757001298108,7.81,204.44,204.38,3.87715931]
[1757001298308,3.01984092,204.45,204.39,3.87703952]
[1757001298511,7.81,204.44,204.4,3.87703952]
[1757001298712,7.81,204.44,204.37,7.55]
[1757001298916,7.81,204.44,204.38,3.87694036]
[1757001299122,10.82984092,204.45,204.39,3.87694036]
[1757001299320,7.81,204.44,204.4,3.87694036]
[1757001299520,7.81,204.44,204.37,7.55]
[1757001299716,7.81,204.44,204.38,3.87668573]
[1757001299912,3.01984092,204.45,204.39,3.87668573]
[1757001300117,3.01984092,204.45,204.4,3.87668573]
[1757001300317,7.81,204.44,204.37,7.55]
[1757001300517,7.81,204.44,204.38,3.87689325]
[1757001300713,7.81,204.44,204.39,3.87689325]
[1757001300919,7.81,204.44,204.37,7.55]
[1757001300920,7.81,204.44,204.4,3.87689325]
[1757001301214,7.81,204.44,204.37,7.55]
[1757001301424,7.81,204.44,204.38,3.87685692]
[1757001301622,7.81,204.44,204.37,7.55]
[1757001301623,7.81,204.44,204.39,3.87685692]
[1757001301920,7.81,204.44,204.4,3.87685692]
[1757001302122,7.81,204.44,204.37,7.55]
[1757001302314,7.81,204.44,204.38,3.87697238]
[1757001302515,7.81,204.44,204.39,3.87697238]
[1757001302717,3.01984092,204.45,204.4,3.87697238]
[1757001303017,7.81,204.44,204.37,7.55]
[1757001303217,7.81,204.44,204.38,3.87681773]
[1757001303526,3.01984092,204.42,204.39,3.87681773]
[1757001303716,7.81,204.41,204.37,7.55]
[1757001303919,7.81,204.41,204.38,3.87698737]
[1757001304120,7.81,204.41,204.34,7.55]
[1757001304320,7.81,204.41,204.35,5.76903859]
[1757001304516,3.01984092,204.42,204.36,3.87719148]
[1757001304723,7.81,204.41,204.37,3.87719148]
[1757001305021,3.01984092,204.39,204.34,7.55]
[1757001305223,10.82984092,204.39,204.35,11.42750748]
[1757001305423,7.81,204.39,204.36,3.87750748]
[1757001305616,7.81,204.39,204.37,3.87750748]
[1757001305814,7.81,204.39,204.35,7.55]
[1757001306025,7.81,204.47,204.36,3.87751058]
[1757001306224,7.81,204.47,204.31,7.55]
[1757001306417,7.81,204.47,204.32,3.8778776]
[1757001306724,1.93204163,204.34,204.33,3.8778776]
[1757001306919,9.74204163,204.34,204.33,3.8778776]
[1757001307322,9.74204163,204.34,204.28,7.55]
[1757001307522,1.93204163,204.32,204.3,7.55]
[1757001307722,1.93204163,204.32,204.31,3.87766688]
[1757001309223,9.74204163,204.32,204.31,3.87766688]
[1757001310121,9.74204163,204.32,204.24,7.55]
[1757001310325,1.93204163,204.26,204.25,3.87537191]
[1757001310624,1.93204163,204.26,204.25,11.42537191]
[1757001311718,7.81,204.31,204.25,11.42537191]
[1757001311919,1.93204163,204.27,204.26,3.87537191]
[1757001312328,9.74204163,204.27,204.26,3.87537191]
[1757001312522,9.74204163,204.27,204.21,7.55]
[1757001312721,1.93204163,204.25,204.22,5.76309279]
[1757001312919,1.93204163,204.25,204.24,7.55]
[1757001313122,1.93204163,204.25,204.24,11.42299789]
[1757001314823,1.93204163,204.25,204.24,3.87299789]
[1757001316431,1.93204163,204.25,204.18,7.55]
[1757001316621,1.93204163,204.25,204.19,5.7545589]
[1757001316928,1.93204163,204.25,204.21,7.55]
[1757001317128,1.93204163,204.25,204.23,7.55]
[1757001318122,1.93204163,204.28,204.25,8.04]
[1757001318322,1.93204163,204.28,204.22,1.93204163]
[1757001318525,1.93204163,204.28,204.24,8.04]
[1757001318726,1.93204163,204.28,204.25,11.90505201]
[1757001318922,1.93204163,204.28,204.25,8.04]
[1757001321535,1.93204163,204.28,204.21,1.93204163]
[1757001321735,1.93204163,204.28,204.22,11.90314501]
[1757001321937,1.93204163,204.28,204.24,8.04]
[1757001322137,1.93204163,204.28,204.22,8.04]
[1757001322338,1.93204163,204.26,204.23,3.85353544]
[1757001322537,1.93204163,204.26,204.25,8.04]
[1757001325341,1.93204163,204.26,204.19,1.93204163]
[1757001325542,1.93204163,204.21,204.2,8.04]
[1757001327944,7.88,204.33,204.2,8.52]
[1757001328242,1.93204163,204.27,204.14,8.04]
[1757001328443,1.93204163,204.27,204.21,8.04]
[1757001328640,1.93204163,204.23,204.21,8.04]
[1757001329043,1.93204163,204.23,204.15,8.04]
[1757001329239,1.93204163,204.2,204.15,8.04]
[1757001329746,1.93204163,204.2,204.14,8.04]
[1757001330544,7.88,204.23,204.14,8.04]
[1757001331045,1.93204163,204.2,204.14,8.04]
[1757001331446,14.7,204.32,204.16,8.04]
[1757001331648,1.93204163,204.23,204.17,1.93204163]
[1757001331940,1.93204163,204.23,204.18,8.04]
[1757001332345,1.93204163,204.23,204.17,1.93204163]
[1757001332540,1.93204163,204.23,204.18,8.04]
[1757001332740,1.93204163,204.19,204.13,1.93204163]
[1757001332945,1.93204163,204.19,204.14,3.84410333]
[1757001333248,1.93204163,204.19,204.14,8.04]
[1757001333444,1.93204163,204.19,204.13,1.93204163]
[1757001333644,1.93204163,204.19,204.15,8.04]
[1757001333843,1.93204163,204.19,204.14,8.04]
[1757001334148,1.93204163,204.19,204.13,1.93204163]
[1757001334149,1.93204163,204.19,204.11,8.04]
[1757001334348,1.93204163,204.19,204.14,1.93204163]
[1757001334546,7.88,204.24,204.15,8.04]
[1757001334745,1.93204163,204.2,204.14,1.93204163]
[1757001334947,1.93204163,204.2,204.09,30.34]
[1757001335150,7.88,204.29,204.13,8.04]
[1757001335350,1.93204163,204.18,204.12,1.93204163]
[1757001335545,1.93204163,204.18,204.14,8.04]
[1757001335851,1.93204163,204.18,204.12,1.93204163]
[1757001336048,1.93204163,204.18,204.14,8.04]
[1757001336251,1.93204163,204.18,204.13,8.04]
[1757001336548,1.93204163,204.18,204.12,8.04]
[1757001336751,7.88,204.2,204.12,8.04]
[1757001336940,1.93204163,204.18,204.12,8.04]
[1757001337539,1.93204163,204.18,204.13,1.93204163]
[1757001337748,1.93204163,204.18,204.14,8.04]
[1757001337946,1.93204163,204.18,204.13,1.93204163]
[1757001338251,7.88,204.2,204.14,8.04]
[1757001338451,9.81204163,204.2,204.14,8.04]
[1757001339046,1.93204163,204.18,204.13,1.93204163]
[1757001339446,1.93204163,204.18,204.14,8.04]
[1757001341554,9.81204163,204.18,204.14,8.04]
[1757001342249,1.93204163,204.18,204.12,8.04]
[1757001342446,1.93204163,204.18,204.13,1.93204163]
[1757001342853,1.93204163,204.18,204.14,8.04]
[1757001343250,1.93204163,204.18,204.13,1.93204163]
[1757001343852,1.93204163,204.18,204.14,8.04]
[1757001344052,1.93204163,204.18,204.13,1.93204163]
[1757001344255,1.93204163,204.16,204.07,4.4095]
[1757001344449,1.93204163,204.16,204.1,9.97204163]
[1757001344848,1.93204163,204.16,204.11,3.84484079]